bitfinex/quotes_SOLUSD_20251208
["timestamp","ask_amount","ask_price","bid_price","bid_amount"]
[1765189926103,0.1,138.46,138.45,7.22282412]
[1765189926712,0.1,138.46,138.42,8.80994492]
[1765189926713,8.72,138.46,138.42,7.22419595]
[1765189926924,10.59216061,138.46,138.41,7.22471231]
[1765189927110,2.57216061,138.45,138.41,7.22471231]
[1765189927309,2.57216061,138.45,138.4,7.22536203]
[1765189927310,1.87216061,138.44,138.4,7.22536203]
[1765189927514,1.87216061,138.44,138.39,18.06413561]
[1765189927515,1.87216061,138.43,138.39,7.22565051]
[1765189927827,2.57216061,138.43,138.4,7.22529212]
[1765189928029,0.7,138.42,138.4,7.22529212]
[1765189929129,0.7,138.42,138.39,7.22595563]
[1765189930318,0.7,138.42,138.39,9.81811624]
[1765189931011,0.7,138.43,138.39,9.81811624]
[1765189931713,7.92407948,138.43,138.39,7.22595563]
[1765189931910,7.92407948,138.43,138.39,7.94595563]
[1765189932222,0.7,138.42,138.39,9.09811624]
[1765189933240,0.7,138.42,138.39,9.81811624]
[1765189934109,0.7,138.42,138.39,7.22595563]
[1765189934726,9.79661303,138.42,138.37,20.65876976]
[1765189934914,17.71661303,138.42,138.37,20.65876976]
[1765189935114,0.7,138.41,138.37,20.65876976]
[1765189935311,0.7,138.41,138.37,0.72]
[1765189936026,107.37216061,138.41,138.36,9.09968301]
[1765189936232,0.7,138.4,138.36,9.81968301]
[1765189937142,7.92573274,138.4,138.36,7.2275224]
[1765189937541,0.7,138.39,138.36,7.2275224]
[1765189937841,8.62,138.39,138.36,7.2275224]
[1765189938219,0.7,138.38,138.36,7.2275224]
[1765189945042,7.92,138.39,138.36,7.2275224]
[1765189945232,8.62,138.39,138.36,7.9475224]
[1765189947029,112.72507372,138.41,138.37,2.59216061]
[1765189947236,104.8,138.41,138.38,1.87216061]
[1765189947545,2.57216061,138.4,138.35,7.22785355]
[1765189947839,7.92,138.39,138.35,7.22785355]
[1765189948024,8.62,138.39,138.35,7.22785355]
[1765189948229,0.7,138.38,138.35,7.22785355]
[1765189948417,0.7,138.38,138.35,7.94785355]
[1765189948622,0.7,138.38,138.34,7.22843988]
[1765189949064,9.79873407,138.38,138.33,7.94890298]
[1765189949649,0.7,138.37,138.33,7.94890298]
[1765189949857,7.92,138.36,138.32,9.10158803]
[1765189950047,7.92,138.36,138.32,9.82158803]
[1765189950243,8.62,138.36,138.32,9.82158803]
[1765189950430,8.62,138.36,138.33,7.22907043]
[1765189951461,0.7,138.35,138.33,7.22907043]
[1765189953957,1.87216061,138.34,138.31,7.23006873]
[1765189954140,17.008864,138.37,138.33,1.87216061]
[1765189954461,17.008864,138.37,138.34,1.87216061]
[1765189954462,0.7,138.37,138.34,1.87216061]
[1765189954772,0.7,138.37,138.34,2.92652127]
[1765189955662,0.7,138.37,138.34,10.1550882]
[1765189956563,0.7,138.37,138.34,7.22856693]
[1765189957758,0.7,138.37,138.34,10.1550882]
[1765189958561,10.85355432,138.37,138.32,7.2291958]
[1765189958975,0.7,138.36,138.32,7.2291958]
[1765189959263,7.92,138.35,138.32,7.9491958]
[1765189959638,8.62,138.35,138.32,7.9491958]
[1765189960050,0.7,138.37,138.33,2.92652127]
[1765189960253,0.7,138.36,138.32,10.87571707]
[1765189966381,112.72,138.37,138.32,10.15571707]
[1765189966676,0.7,138.36,138.33,3.64652127]
[1765189967183,0.7,138.36,138.32,10.15571707]
[1765189967558,0.7,138.36,138.31,1e-08]
[1765189967559,2.92652127,138.35,138.31,1e-08]
[1765189967882,7.92,138.34,138.31,1e-08]
[1765189968062,8.62,138.34,138.31,1e-08]
[1765189968376,0.7,138.33,138.31,1e-08]
[1765189972391,0.72,138.33,138.31,1e-08]
[1765189972593,15.14868537,138.34,138.31,1e-08]
[1765189972885,127.19620145,138.49,138.33,2.92652127]
[1765189972886,7.22491149,138.41,138.33,2.92652127]
[1765189973084,2.92652127,138.37,138.31,1e-08]
[1765189973391,2.92652127,138.35,138.31,1e-08]
[1765189973572,27.87538527,138.36,138.31,1e-08]
[1765189973766,0.72,138.35,138.31,3.60652128]
[1765189973989,24.228864,138.36,138.32,2.92652127]
[1765189974292,0.72,138.35,138.33,7.22876104]
[1765189976889,0.72,138.35,138.32,10.15613376]
[1765189977182,0.72,138.35,138.32,10.83613376]
[1765189977766,24.948864,138.36,138.33,0.68]
[1765189977960,24.948864,138.36,138.32,28.23016499]
[1765189977961,24.948864,138.36,138.32,28.91016499]
[1765189978491,0.72,138.35,138.32,28.91016499]
[1765189979512,0.72,138.35,138.31,7.22979534]
[1765189979678,7.92,138.36,138.32,0.68]
[1765189979993,0.72,138.35,138.32,7.90954903]
[1765189980585,107.72652127,138.4,138.34,2.92652127]
[1765189980790,0.72,138.39,138.36,2.92652127]
[1765189981085,8.64,138.39,138.35,2.92652127]
[1765189981296,2.92652127,138.41,138.37,10.15352134]
[1765189981297,0.72,138.41,138.37,10.15352134]
[1765189981590,0.72,138.44,138.4,2.92652127]
[1765189981761,0.82,138.46,138.43,2.92652127]
[1765189982085,0.82,138.46,138.43,3.60652127]
[1765189982786,0.82,138.46,138.44,2.92652127]
[1765189982999,8.04259894,138.46,138.44,2.92652127]
[1765189983287,0.1,138.46,138.44,2.92652127]
[1765189985788,0.1,138.46,138.43,10.15026543]
[1765189985986,0.77,138.46,138.43,2.92652127]
[1765189986189,0.77,138.46,138.42,3.64652127]
[1765189986570,0.77,138.46,138.42,10.87056178]
[1765189986773,0.77,138.46,138.43,3.64652127]
[1765189987388,0.1,138.46,138.44,0.72]
[1765189987580,0.1,138.46,138.45,2.92652127]
[1765189988478,0.1,138.46,138.45,3.64652127]
[1765189988673,0.1,138.46,138.45,2.92652127]
[1765189988874,0.1,138.46,138.44,2.92652127]
[1765189989090,0.1,138.46,138.44,3.64652127]
[1765189989295,0.1,138.46,138.44,10.86978902]
[1765189989496,0.67,138.45,138.41,2.92652127]
[1765189989802,0.67,138.45,138.42,10.15088786]
[1765189990106,19.23538527,138.44,138.39,7.22560939]
[1765189990266,0.67,138.43,138.39,7.22560939]
[1765189990461,0.67,138.43,138.39,10.15213066]
[1765189991078,0.67,138.43,138.39,10.87213066]
[1765189991285,0.67,138.43,138.39,7.94560939]
[1765189991480,3.59652127,138.43,138.38,10.15286296]
[1765189991994,0.67,138.42,138.38,7.22634169]
[1765189992380,8.59,138.42,138.38,7.22634169]
[1765189992807,0.67,138.41,138.38,7.22634169]
[1765189994294,0.67,138.41,138.38,7.94634169]
[1765189995898,18.05792491,138.45,138.38,7.94634169]
[1765189995899,0.77,138.46,138.4,11.73646619]
[1765189996107,0.77,138.46,138.42,2.92652127]
[1765189996305,2.92652127,138.45,138.39,3.64652127]
[1765189996501,10.84652127,138.45,138.39,3.64652127]
[1765189996683,0.67,138.44,138.39,3.64652127]
[1765189997502,0.67,138.44,138.4,7.22543352]
[1765189997683,2.92652127,138.42,138.36,20.9946191]
[1765189997883,24.20229083,138.44,138.39,10.15247169]
[1765189998080,0.67,138.43,138.4,2.92652127]
[1765189998279,0.67,138.43,138.4,3.64652127]
[1765189998707,18.06951104,138.45,138.4,3.64652127]
[1765189998708,0.67,138.44,138.4,3.64652127]
[1765189999003,16.408864,138.46,138.42,2.92652127]
[1765189999213,0.1,138.46,138.43,2.92652127]
[1765189999385,0.1,138.46,138.41,0.72]
[1765189999386,0.77,138.46,138.42,7.22438953]
[1765189999585,7.92,138.45,138.42,7.22438953]
[1765190000106,0.67,138.44,138.42,7.22438953]
[1765190000311,0.67,138.44,138.41,7.22475383]
[1765190001282,0.67,138.44,138.41,10.1512751]
[1765190004398,7.92,138.45,138.42,10.82060772]
[1765190004600,7.92,138.45,138.42,10.15060772]
[1765190004796,8.64,138.45,138.42,10.15060772]
[1765190005017,8.64,138.45,138.42,10.82060772]
[1765190005215,8.64,138.45,138.42,10.15060772]
[1765190005390,0.72,138.44,138.42,7.22408645]
[1765190007016,0.72,138.44,138.41,10.15120243]
[1765190007221,0.72,138.44,138.41,7.22468116]
[1765190007909,0.72,138.44,138.38,2.92652127]
[1765190007910,27.17880381,138.44,138.38,2.92652127]
[1765190008216,2.92652127,138.43,138.39,7.22566292]
[1765190008388,7.92,138.42,138.39,7.22566292]
[1765190008590,7.92,138.42,138.4,2.92652127]
[1765190008803,7.92,138.42,138.41,7.22491149]
[1765190010603,0.72,138.43,138.41,7.22491149]
[1765190011418,0.82,138.46,138.42,3.59652127]
[1765190011590,0.82,138.46,138.43,2.92652127]
[1765190011917,0.72,138.45,138.43,10.15012649]
[1765190013014,0.72,138.45,138.4,2.92652127]
[1765190013214,0.72,138.45,138.39,21.66063975]
[1765190013215,7.92,138.44,138.39,21.66063975]
[1765190013602,0.72,138.43,138.39,21.66063975]
[1765190014616,0.72,138.43,138.4,7.22535348]
[1765190014814,3.64652127,138.43,138.38,2.92652127]
[1765190015413,0.72,138.42,138.38,2.92652127]
[1765190015620,0.72,138.42,138.39,7.22588373]
[1765190016116,10.8709152,138.42,138.38,7.22647781]
[1765190016521,0.72,138.41,138.38,7.22647781]
[1765190016907,8.64,138.41,138.38,7.22647781]
[1765190017396,8.64,138.41,138.36,7.22745522]
[1765190017397,0.72,138.4,138.36,7.22745522]
[1765190017598,0.72,138.4,138.37,7.22693017]
[1765190018111,0.72,138.4,138.37,9.09911729]
[1765190018510,0.72,138.4,138.37,7.22693017]
[1765190018707,0.72,138.4,138.37,9.09911729]
[1765190019108,0.72,138.4,138.37,7.22693017]
[1765190019618,7.94581652,138.4,138.36,7.22743025]
[1765190019855,0.72,138.4,138.36,7.22743025]
[1765190020000,15.86504173,138.41,138.37,2.54218712]
[1765190020202,0.72,138.4,138.37,2.54218712]
[1765190020926,0.72,138.4,138.36,9.09961737]
[1765190021144,0.72,138.4,138.36,7.22743025]
[1765190022332,0.72,138.4,138.36,9.09961737]
[1765190022939,0.72,138.4,138.36,9.76961737]
[1765190023549,112.72,138.41,138.38,7.22647781]
[1765190023734,112.72,138.41,138.39,1.87218712]
[1765190023735,104.8,138.41,138.39,1.87218712]
[1765190023940,105.52,138.41,138.38,27.83485946]
[1765190024253,105.52,138.41,138.38,25.29267234]
[1765190027763,104.8,138.41,138.38,27.83485946]
[1765190028858,0.72,138.42,138.38,27.83485946]
[1765190029040,0.72,138.41,138.38,27.83485946]
[1765190030362,0.72,138.41,138.38,27.16485946]
[1765190030530,0.72,138.41,138.38,25.29267234]
[1765190030954,0.72,138.41,138.38,7.22647781]
[1765190032441,0.72,138.41,138.38,9.09866493]
[1765190033544,0.7,138.42,138.38,27.85485946]
[1765190033740,0.7,138.42,138.39,1.87218712]
[1765190034869,0.7,138.42,138.38,27.85485946]
[1765190035662,7.92,138.43,138.4,1.87218712]
[1765190035859,0.8,138.46,138.42,1.87218712]
[1765190036062,0.8,138.46,138.43,1.87218712]
[1765190036063,8.72,138.46,138.43,1.87218712]
[1765190036269,0.1,138.46,138.44,1.87218712]
[1765190037060,0.1,138.46,138.45,1.87218712]
[1765190037963,0.1,138.46,138.45,9.09501124]
[1765190040145,0.8,138.46,138.45,7.22282412]
[1765190040345,0.1,138.46,138.45,7.22282412]
[1765190042047,0.1,138.46,138.44,7.22334585]
[1765190043476,0.8,138.46,138.44,7.22334585]
[1765190043649,0.1,138.46,138.44,7.22334585]
[1765190044369,0.8,138.46,138.41,1.87218712]
[1765190044571,0.8,138.46,138.41,10.45218712]
[1765190044763,0.8,138.46,138.41,2.53218712]
[1765190045273,7.92,138.45,138.4,28.74521749]
[1765190045479,7.92,138.45,138.42,1.87218712]
[1765190045656,0.1,138.46,138.44,1.87218712]
[1765190045863,0.1,138.46,138.44,2.53218712]
[1765190047263,0.1,138.46,138.45,7.22282412]
[1765190050054,0.8,138.46,138.44,7.22326783]
[1765190051079,0.8,138.46,138.43,7.22386765]
[1765190051577,8.02242013,138.46,138.43,7.22386765]
[1765190052079,0.7,138.45,138.43,7.22386765]
[1765190053176,0.7,138.45,138.42,9.09657665]
[1765190053360,0.1,138.46,138.43,2.53218712]
[1765190053677,0.8,138.46,138.42,25.28536337]
[1765190053879,0.8,138.46,138.42,27.15755049]
[1765190054085,0.8,138.46,138.42,25.28536337]
[1765190054902,0.8,138.46,138.43,0.66]
[1765190055182,0.8,138.46,138.44,7.22334585]
[1765190055562,0.1,138.46,138.44,7.22334585]
[1765190055763,0.8,138.46,138.44,7.22334585]
[1765190056683,0.1,138.46,138.44,7.22334585]
[1765190057680,0.1,138.46,138.44,9.75553297]
[1765190063972,0.1,138.46,138.45,11.34213204]
[1765190065074,0.1,138.46,138.45,9.54481916]
[1765190066494,0.1,138.46,138.45,16.76764328]
[1765190067083,0.1,138.46,138.45,16.95764328]
[1765190068779,0.1,138.46,138.45,16.76764328]
[1765190068982,0.1,138.46,138.45,9.09501124]
[1765190073197,0.81,138.46,138.45,7.22282412]
[1765190074680,0.1,138.46,138.45,9.09501124]
[1765190074881,0.1,138.46,138.45,17.90495616]
[1765190075087,0.1,138.46,138.45,18.09495616]
[1765190075301,0.1,138.46,138.45,17.90495616]
[1765190076783,0.1,138.46,138.45,18.95373368]
[1765190077605,0.81,138.46,138.45,7.22282412]
[1765190077899,0.1,138.46,138.45,10.14378876]
[1765190078893,0.1,138.46,138.45,18.95373368]
[1765190079409,1.1,138.5,138.45,19.04373368]
[1765190079611,0.1,138.54,138.49,5.84192928]
[1765190079913,0.1,138.57,138.54,11.73090956]
[1765190080201,1e-08,138.55,138.54,11.73090956]
[1765190080581,0.71000001,138.55,138.54,11.69844867]
[1765190080779,1e-08,138.55,138.54,16.02807686]
[1765190080989,1e-08,138.55,138.54,18.9490415]
[1765190081590,1e-08,138.55,138.54,26.8490415]
[1765190085110,0.71000001,138.55,138.53,7.21856202]
[1765190085411,0.71000001,138.55,138.53,23.52742602]
[1765190085983,0.71000001,138.55,138.54,7.21813194]
[1765190089311,1e-08,138.55,138.54,18.9490415]
[1765190089902,1e-08,138.55,138.54,21.83764955]
[1765190091800,0.1,138.57,138.56,11.73090956]
[1765190092117,0.1,138.58,138.57,25.11880892]
[1765190092289,1e-08,138.58,138.57,11.73090956]
[1765190093602,1e-08,138.58,138.57,16.54795688]
[1765190094227,1e-08,138.58,138.57,23.76452612]
[1765190094806,0.1,138.6,138.59,25.11880892]
[1765190095108,0.1,138.6,138.59,40.75682088]
[1765190095305,0.76,138.6,138.59,32.85682088]
[1765190095519,0.76,138.6,138.59,35.7443863]
[1765190095728,0.1,138.6,138.59,35.7443863]
[1765190095903,0.76,138.6,138.59,35.7443863]
[1765190096411,0.76,138.6,138.59,42.95991411]
[1765190097723,0.76,138.6,138.59,17.84110519]
[1765190097894,0.76,138.6,138.58,7.21586668]
[1765190098100,0.76,138.6,138.57,7.21649152]
[1765190098802,0.76,138.6,138.56,7.21688588]
[1765190099001,0.76,138.6,138.55,20.96498974]
[1765190099002,2.92096464,138.59,138.55,7.21752173]
[1765190099505,0.66,138.58,138.55,7.21752173]
[1765190099819,0.66,138.58,138.56,2.92096464]
[1765190100898,0.66,138.58,138.55,28.18251379]
[1765190101513,0.66,138.58,138.56,2.92096464]
[1765190101713,0.66,138.58,138.55,7.21752173]
[1765190102240,7.87612304,138.58,138.54,7.21791367]
[1765190102406,0.66,138.58,138.54,7.21791367]
[1765190102601,0.66,138.57,138.54,7.21791367]
[1765190103003,3.58096464,138.57,138.53,16.308864]
[1765190103332,2.92096464,138.56,138.53,16.308864]
[1765190103510,3.58096464,138.56,138.53,16.308864]
[1765190103702,0.66,138.55,138.53,7.2186364]
[1765190103903,0.66,138.58,138.53,2.92096464]
[1765190104711,2.92096464,138.57,138.52,28.18749658]
[1765190105107,0.66,138.56,138.52,28.18749658]
[1765190105722,0.66,138.56,138.52,10.14013876]
[1765190106231,0.66,138.56,138.52,7.21917412]
[1765190106422,3.58096464,138.56,138.52,7.21917412]
[1765190106918,0.66,138.55,138.52,7.21917412]
[1765190108834,0.66,138.55,138.52,10.14013876]
[1765190109148,0.66,138.57,138.54,2.92096464]
[1765190109333,0.66,138.57,138.55,16.308864]
[1765190109630,8.0,138.6,138.57,16.308864]
[1765190109631,0.66,138.59,138.57,16.308864]
[1765190109822,0.66,138.59,138.58,2.92096464]
[1765190110816,0.66,138.59,138.58,7.21604849]
[1765190112423,0.66,138.59,138.58,10.13701313]
[1765190116045,0.76,138.6,138.58,10.13701313]
[1765190116241,0.76,138.6,138.59,2.92096464]
[1765190116441,0.1,138.6,138.59,2.92096464]
[1765190116741,0.1,138.6,138.59,11.73090956]
[1765190116927,0.1,138.6,138.59,12.41090956]
[1765190117528,0.1,138.6,138.59,11.73090956]
[1765190118428,0.1,138.6,138.59,19.62643737]
[1765190119446,0.1,138.6,138.59,18.94643737]
[1765190119643,0.1,138.6,138.59,19.62643737]
[1765190121131,1e-08,138.6,138.59,25.69233874]
[1765190121332,1e-08,138.6,138.59,25.66562859]
[1765190123234,1e-08,138.6,138.59,19.62643737]
[1765190123446,1e-08,138.6,138.59,18.94643737]
[1765190123854,1e-08,138.6,138.59,19.60643737]
[1765190125838,1e-08,138.6,138.59,18.94643737]
[1765190126259,1e-08,138.6,138.59,10.13649245]
[1765190126260,0.72000001,138.6,138.59,10.13649245]
[1765190127358,0.72000001,138.6,138.58,16.02599341]
[1765190127531,0.72000001,138.6,138.59,2.92096464]
[1765190128462,0.72000001,138.6,138.59,10.13649245]
[1765190130664,1e-08,138.6,138.59,10.13649245]
[1765190131227,1e-08,138.6,138.59,18.94643737]
[1765190131433,1e-08,138.6,138.59,35.25530137]
[1765190132357,0.72000001,138.6,138.59,26.44535645]
[1765190132661,1e-08,138.6,138.59,26.44535645]
[1765190134040,0.72000001,138.6,138.58,7.21588814]
[1765190135154,3.64096465,138.6,138.57,7.21646897]
[1765190135336,0.72000001,138.6,138.57,7.21646897]
[1765190135526,0.72,138.59,138.57,7.21646897]
[1765190137656,0.72,138.59,138.56,28.18077987]
[1765190138732,0.72,138.59,138.56,27.12682865]
[1765190139867,0.72,138.59,138.57,1.86701342]
[1765190140935,0.72,138.59,138.56,19.90973859]
[1765190142735,0.72,138.59,138.56,27.12682865]
[1765190143867,0.72,138.59,138.56,7.21709006]
[1765190144558,2.58701342,138.59,138.55,7.2173977]
[1765190144750,2.58701342,138.59,138.54,18.04471733]
[1765190145062,0.72,138.58,138.54,19.91173075]
[1765190145650,0.72,138.58,138.54,27.12986269]
[1765190149060,0.72,138.58,138.55,1.86701342]
[1765190151061,0.72,138.58,138.56,7.21709006]
[1765190152884,0.72,138.58,138.55,9.08462439]
[1765190154360,0.72,138.58,138.55,27.12865181]
[1765190156058,0.72,138.58,138.55,7.21761097]
[1765190156778,0.65,138.58,138.55,9.74462439]
[1765190156979,0.65,138.58,138.55,27.12865181]
[1765190157368,0.65,138.58,138.56,1.86701342]
[1765190158479,0.65,138.58,138.55,27.12865181]
[1765190163289,1.86701342,138.56,138.49,18.05126014]
[1765190163602,1.86701342,138.54,138.5,7.22004737]
[1765190164093,0.66,138.53,138.5,7.22004737]
[1765190165383,0.66,138.53,138.49,25.27199809]
[1765190166785,0.66,138.53,138.5,1.86701342]
[1765190166993,0.66,138.53,138.5,2.54701342]
[1765190167388,0.66,138.53,138.5,1.86701342]
[1765190167791,0.66,138.55,138.51,2.54701342]
[1765190167985,0.66,138.55,138.52,1.86701342]
[1765190168305,0.66,138.56,138.53,1.86701342]
[1765190168469,0.66,138.56,138.54,1.86701342]
[1765190169398,0.66,138.56,138.54,9.08475769]
[1765190169586,0.66,138.56,138.54,7.21774427]
[1765190170493,0.66,138.56,138.52,7.21905735]
[1765190170494,9.74428029,138.56,138.52,7.21905735]
[1765190170677,0.66,138.56,138.53,7.21863075]
[1765190170880,0.66,138.55,138.53,7.21863075]
[1765190172097,0.66,138.55,138.53,9.08564417]
[1765190174809,0.66,138.55,138.53,7.21863075]
[1765190175041,0.66,138.55,138.52,1.86701342]
[1765190175196,0.66,138.55,138.52,7.21898563]
[1765190175391,0.66,138.55,138.53,7.21861388]
[1765190176081,0.66,138.55,138.51,19.91564095]
[1765190176082,0.66,138.55,138.52,7.21917412]
[1765190176281,0.66,138.55,138.52,27.81412285]
[1765190176483,0.66,138.57,138.53,1.86701342]
[1765190177611,0.66,138.57,138.54,1.86701342]
[1765190178377,0.66,138.57,138.55,7.21761097]
[1765190182799,0.71,138.59,138.56,2.57701342]
[1765190183018,8.61,138.59,138.56,1.86701342]
[1765190183214,8.61,138.59,138.55,27.83865181]
[1765190183430,0.71,138.58,138.55,27.83865181]
[1765190183728,8.61,138.59,138.56,1.86701342]
[1765190183896,0.71,138.58,138.55,27.12865181]
[1765190184301,0.71,138.58,138.55,7.21761097]
[1765190184702,0.71,138.58,138.54,7.21813194]
[1765190185399,0.71,138.58,138.54,25.2634618]
[1765190186326,1.86701342,138.55,138.5,13.28555203]
[1765190186527,1.86701342,138.53,138.5,7.22004831]
[1765190186837,1.86701342,138.53,138.48,25.27367685]
[1765190187037,0.71,138.52,138.48,7.22125938]
[1765190187402,0.71,138.52,138.48,9.7982728]
[1765190187625,0.71,138.52,138.48,27.85142126]
[1765190188937,0.71,138.52,138.49,1.86701342]
[1765190189725,7.9,138.53,138.49,2.57701342]
[1765190189929,8.61,138.53,138.49,2.57701342]
[1765190190230,0.71,138.52,138.49,1.86701342]
[1765190190429,0.71,138.54,138.51,1.86701342]
[1765190190734,8.61,138.54,138.5,1.86701342]
[1765190190934,8.61,138.54,138.51,7.21969532]
[1765190191116,0.71,138.53,138.51,7.21969532]
[1765190192330,0.71,138.53,138.5,7.21996146]
[1765190192512,0.71,138.53,138.51,1.86701342]
[1765190192824,0.71,138.53,138.5,27.13751639]
[1765190194024,0.71,138.53,138.51,1.86701342]
[1765190194423,7.9,138.54,138.51,1.86701342]
[1765190194718,105.51,138.55,138.53,1.86701342]
[1765190195038,105.51,138.55,138.54,7.21813194]
[1765190195039,0.71,138.55,138.54,7.21813194]
[1765190196625,0.71,138.55,138.53,7.21847306]
[1765190197622,0.71,138.55,138.52,19.91481317]
[1765190198533,0.71,138.55,138.52,20.62481317]
[1765190198835,0.71,138.55,138.53,7.21847306]
[1765190201125,0.71,138.55,138.52,25.26697387]
[1765190203431,0.71,138.55,138.52,7.21917412]
[1765190203933,8.61,138.55,138.52,7.21917412]
[1765190204230,0.71,138.54,138.52,7.21917412]
[1765190205711,0.71,138.54,138.51,28.18774359]
[1765190206040,8.61,138.56,138.52,3.62880995]
[1765190206217,7.9,138.56,138.52,3.62880995]
[1765190206536,0.71,138.55,138.52,3.62880995]
[1765190207340,0.71,138.55,138.51,28.18774359]
[1765190207536,0.71,138.55,138.51,25.26893364]
[1765190210638,0.71,138.55,138.51,25.97893364]
[1765190212246,0.71,138.55,138.51,28.89774359]
[1765190221159,0.71,138.55,138.51,28.18774359]
[1765190222059,0.71,138.55,138.52,2.91880995]
[1765190222277,0.71,138.55,138.51,10.13850527]
[1765190222467,0.71,138.55,138.51,7.21969532]
[1765190223666,7.92767838,138.55,138.51,7.21969532]
[1765190224050,0.65,138.54,138.51,7.21969532]
[1765190225477,7.9,138.53,138.5,7.22000645]
[1765190225866,0.65,138.52,138.5,7.22000645]
[1765190226554,0.65,138.52,138.49,7.22073795]
[1765190228479,104.8,138.55,138.52,7.21917412]
[1765190228684,105.45,138.55,138.52,7.21917412]
[1765190228854,0.65,138.54,138.52,7.21917412]
[1765190229283,0.65,138.54,138.51,7.21946294]
[1765190229467,7.9,138.53,138.51,7.21946294]
[1765190229774,10.81880995,138.53,138.51,7.21946294]
[1765190229951,0.65,138.52,138.51,7.21946294]
[1765190230665,0.65,138.52,138.49,28.85070202]
[1765190230846,8.55,138.53,138.49,28.85070202]
[1765190231048,0.65,138.52,138.49,25.93189207]
[1765190231242,7.9,138.53,138.5,2.91880995]
[1765190231458,113.35,138.55,138.51,3.57880995]
[1765190232570,113.35,138.55,138.52,7.21917412]
[1765190233958,112.7,138.55,138.52,7.21917412]
[1765190234167,0.65,138.54,138.52,7.21917412]
[1765190235272,3.56880995,138.54,138.49,18.05117821]
[1765190235575,2.91880995,138.53,138.47,6.06550372]
[1765190235764,10.81880995,138.52,138.47,24.11918443]
[1765190235961,11.46880995,138.52,138.47,24.13603148]
[1765190236171,0.65,138.51,138.47,24.13603148]
[1765190236370,2.91880995,138.5,138.46,6.08235077]
[1765190236570,7.9,138.52,138.45,0.2]
[1765190236571,11.46880995,138.49,138.45,0.2]
[1765190236759,8.55,138.49,138.45,3.11880995]
[1765190236960,0.65,138.48,138.45,3.11880995]
[1765190237490,0.65,138.5,138.47,7.22170678]
[1765190237666,8.55,138.5,138.47,7.22170678]
[1765190237854,0.65,138.49,138.47,7.22170678]
[1765190238973,0.65,138.49,138.46,7.22208777]
[1765190240588,0.65,138.49,138.45,0.2]
[1765190240589,3.56880995,138.49,138.45,7.4226109]
[1765190240788,10.78959429,138.49,138.45,0.2]
[1765190240968,0.68,138.48,138.45,0.2]
[1765190241788,0.68,138.48,138.45,7.42273009]
[1765190243603,10.8201945,138.48,138.45,0.2]
[1765190243780,0.68,138.47,138.45,0.2]
[1765190244169,0.68,138.47,138.45,7.42277477]
[1765190244362,8.58,138.47,138.45,0.2]
[1765190245091,0.68,138.46,138.45,7.42282412]
[1765190245685,0.68,138.46,138.45,0.2]
[1765190246111,7.90230247,138.46,138.45,0.2]
[1765190246583,10.82111242,138.46,138.45,0.2]
[1765190246898,7.90230247,138.46,138.45,0.2]
[1765190247079,10.82111242,138.46,138.45,0.2]
[1765190247893,18.72111242,138.46,138.45,0.2]
[1765190248664,0.68,138.46,138.45,0.2]
[1765190248895,8.58,138.46,138.45,0.2]
[1765190251704,18.72111242,138.46,138.45,0.2]
[1765190251885,17.72111242,138.46,138.45,0.2]
[1765190252605,112.02197133,138.47,138.45,0.2]
[1765190252771,7.9,138.46,138.45,0.2]
[1765190254585,104.8,138.5,138.45,11.03150952]
[1765190254817,7.9,138.51,138.48,2.91880995]
[1765190255119,7.9,138.51,138.47,2.91880995]
[1765190255120,8.58,138.51,138.47,2.91880995]
[1765190255592,0.68,138.5,138.47,3.60880995]
[1765190255787,0.68,138.5,138.47,10.83013689]
[1765190255989,0.68,138.5,138.47,7.22132694]